fUST/lending_fUST_20250610
["ID","MTS","AMOUNT","RATE_DAILY","PERIOD"]
[365219187,1749541837460,-440.0,0.00021095,4]
[365219188,1749541837469,-440.0,0.00021095,4]
[365219189,1749541837477,-460.0,0.00021095,4]
[365219190,1749541837485,-440.0,0.00021095,4]
[365219191,1749541837494,-430.0,0.00021095,4]
[365219192,1749541837503,-440.0,0.00021095,4]
[365219193,1749541837513,-412.57978074,0.00021095,4]
[365219194,1749541837523,-440.0,0.00021095,4]
[365219195,1749541837533,-440.0,0.00021095,4]
[365219196,1749541837546,-430.0,0.00021095,4]
[365219197,1749541837556,-403.52363007,0.00021095,4]
[365219198,1749541837566,-440.0,0.00021095,4]
[365219199,1749541837575,-521.16,0.00021095,4]
[365219200,1749541837584,-1277.3,0.00021095,4]
[365219201,1749541837594,-430.0,0.00021095,4]
[365219202,1749541837603,-404.29426956,0.00021095,4]
[365219203,1749541837612,-440.0,0.00021095,4]
[365219204,1749541837622,-440.0,0.00021095,4]
[365219205,1749541837632,-440.0,0.00021095,4]
[365219206,1749541837642,-440.0,0.00021095,4]
[365219207,1749541837651,-352.34221752,0.00021095,4]
[365219208,1749541837661,-460.0,0.00021095,4]
[365219209,1749541837670,-460.0,0.00021095,4]
[365219210,1749541837680,-460.0,0.00021095,4]
[365219211,1749541837690,-354.89890044,0.00021095,4]
[365219212,1749541837699,-440.0,0.00021095,4]
[365219213,1749541837709,-326.93239264,0.00021095,4]
[365219214,1749541837719,-430.0,0.00021095,4]
[365219215,1749541837728,-440.0,0.00021095,4]
[365219216,1749541837739,-430.0,0.00021095,4]
[365219217,1749541837748,-440.0,0.00021095,4]
[365219218,1749541837761,-460.0,0.00021095,4]
[365219219,1749541837771,-440.0,0.00021095,4]
[365219220,1749541837781,-440.0,0.00021095,4]
[365219221,1749541837790,-460.0,0.00021095,4]
[365219222,1749541837801,-350.0,0.00021095,2]
[365219223,1749541837810,-547.34600542,0.00021095,4]
[365219224,1749541837820,-370.0,0.00021095,4]
[365219225,1749541837831,-460.0,0.00021095,4]
[365219226,1749541837841,-440.0,0.00021095,4]
[365219227,1749541837851,-440.0,0.00021095,4]
[365219228,1749541837861,-460.0,0.00021095,4]
[365219229,1749541837870,-225.82412333,0.00021095,4]
[365219230,1749541837881,-460.0,0.00021095,4]
[365219231,1749541837891,-440.0,0.00021095,4]
[365219232,1749541837901,-440.0,0.00021095,4]
[365219233,1749541837910,-536.52557282,0.00021095,4]
[365219234,1749541837920,-440.0,0.00021095,4]
[365219235,1749541837930,-407.29895941,0.00021095,4]
[365219236,1749541837940,-405.74981518,0.00021095,4]
[365219237,1749541837949,-441.95,0.00021095,4]
[365219238,1749541837959,-430.0,0.00021095,4]
[365219239,1749541837969,-440.0,0.00021095,4]
[365219240,1749541837979,-400.0,0.00021095,4]
[365219241,1749541837989,-221.5857828,0.00021095,4]
[365219242,1749541837999,-460.0,0.00021095,4]
[365219243,1749541838008,-301.52955287,0.00021095,4]
[365219244,1749541838019,-440.0,0.00021095,4]
[365219245,1749541838035,-440.0,0.00021095,4]
[365219246,1749541838044,-440.0,0.00021095,4]
[365219247,1749541838057,-440.0,0.00021095,4]
[365219248,1749541838071,-310.37054894,0.00021095,4]
[365219249,1749541838085,-129.62945106,0.00021095,4]
[365219250,1749541838094,-440.0,0.00021095,4]
[365219251,1749541838104,-440.0,0.00021095,4]
[365219252,1749541838114,-290.10333113,0.00021095,4]
[365219253,1749541838126,-263.12666887,0.00021095,4]
[365219254,1749541838135,-559.85,0.00021095,4]
[365219255,1749541838145,-440.0,0.00021095,4]
[365219256,1749541838154,-382.56265209,0.00021095,4]
[365219257,1749541838164,-440.0,0.00021095,4]
[365219258,1749541838173,-400.0,0.00021095,4]
[365219259,1749541838182,-428.76106296,0.00021095,4]
[365219260,1749541838198,-12.14637709,0.00021095,4]
[365219262,1749541838207,-430.0,0.00021095,4]
[365219263,1749541838217,-440.0,0.00021095,4]
[365219265,1749541838226,-440.0,0.00021095,4]
[365219266,1749541838236,-440.0,0.00021095,4]
[365219267,1749541838245,-440.0,0.00021095,4]
[365219268,1749541838256,-440.0,0.00021095,4]
[365219269,1749541838266,-395.63,0.000211,2]
[365219271,1749541838275,-1584.62,0.000211,2]
[365219272,1749541838285,-1545.13,0.00021108,2]
[365219273,1749541838295,-273.89425901,0.00021157,2]
[365219274,1749541838305,-503.19065093,0.00021159,2]
[365219275,1749541838314,-159.71985028,0.00021159,2]
[365219276,1749541838324,-501.76175239,0.00021172,2]
[365219277,1749541838333,-201.94437036,0.00021204,4]
[365219278,1749541838343,-389.41699246,0.00021218,2]
[365219279,1749541838355,-114.45224284,0.00021218,2]
[365219280,1749541838365,-503.13511516,0.00021254,2]
[365219281,1749541838375,-500.0,0.00021278,2]
[365219282,1749541838385,-500.0,0.00021278,2]
[365219283,1749541838395,-1161.75,0.00021368,4]
[365219284,1749541838405,-460.0,0.00021369,4]
[365219285,1749541838415,-460.0,0.00021369,4]
[365219286,1749541838424,-460.0,0.00021369,4]
[365219287,1749541838433,-1277.3,0.00021369,4]
[365219288,1749541838443,-460.0,0.00021369,4]
[365219289,1749541838453,-460.0,0.00021369,4]
[365219290,1749541838462,-460.0,0.00021369,4]
[365219291,1749541838472,-460.0,0.00021369,4]
[365219292,1749541838481,-460.0,0.00021369,4]
[365219293,1749541838491,-460.0,0.00021369,4]
[365219294,1749541838501,-460.0,0.00021369,4]
[365219295,1749541838511,-357.84012577,0.00021369,4]
[365219382,1749541847812,-500.0,0.00021091,2]
[365219383,1749541847822,-439.4462102,0.00021091,2]
[365219384,1749541847835,-60.5537898,0.00021091,2]
[365219385,1749541847845,-500.0,0.00021091,2]
[365219386,1749541847854,-500.0,0.00021091,2]
[365219387,1749541847863,-500.0,0.00021091,2]
[365219388,1749541847873,-500.0,0.00021091,2]
[365219389,1749541847882,-500.0,0.00021091,2]
[365219390,1749541847892,-500.0,0.00021091,2]
[365219391,1749541847901,-369.5722635,0.00021091,2]
[365219392,1749541847910,-500.0,0.00021091,2]
[365219393,1749541847920,-500.0,0.00021091,2]
[365219394,1749541847930,-500.0,0.00021091,2]
[365219395,1749541847939,-500.0,0.00021091,2]
[365219396,1749541848078,-500.0,0.00021091,2]
[365219397,1749541848089,-500.0,0.00021091,2]
[365219398,1749541848099,-500.0,0.00021091,2]
[365219399,1749541848108,-500.0,0.00021091,2]
[365219400,1749541848119,-4279.09803324,0.00021175,2]
[365219484,1749542279323,345.029627,0.00013699,2]
[365219519,1749542476856,-285.15117557,0.00018805,2]
[365219520,1749542491247,200.0,0.00024638,120]
[365219521,1749542507476,-293.72853395,0.00018805,2]
[365219522,1749542510710,-300.0,0.00018805,2]
[365219523,1749542513095,-251.22513046,0.00018805,2]
[365219526,1749542551501,200.0,0.00024227,120]
[365219536,1749542702119,-157.1384663,0.00018617,6]
[365219537,1749542728653,-218.21914769,0.00018617,6]
[365219538,1749542754066,-206.38699397,0.00018617,6]
[365219546,1749542791983,-157.19,0.00018805,2]
[365219547,1749542851045,200.0,0.00024495,120]
[365219548,1749542851862,-282.34501652,0.00018805,2]
[365219550,1749542856417,-256.0321286,0.00018805,2]
[365219559,1749542971912,-397.17778172,0.00018805,2]
[365219560,1749542976322,-172.2273783,0.00018805,2]
[365219672,1749543038498,-5000.0,0.00018617,2]
[365219673,1749543038509,-206.01501652,0.00019799,2]
[365219674,1749543038519,-233.52,0.00019899,2]
[365219676,1749543038530,-285.0,0.00019999,2]
[365219678,1749543038540,-300.0,0.00019999,2]
[365219680,1749543038550,-4888.0,0.0002,2]
[365219682,1749543038561,-160.0,0.00020137,2]
[365219684,1749543038571,-827.57,0.00020144,2]
[365219686,1749543038580,-293.991393,0.00020176,2]
[365219688,1749543038591,-345.029627,0.00020187,2]
[365219690,1749543038601,-270.26619478,0.000209,4]
[365219692,1749543038611,-186.0,0.00021,2]
[365219694,1749543038620,-186.0,0.00021,2]
[365219696,1749543038630,-186.0,0.00021,2]
[365219698,1749543038640,-270.26619462,0.00021038,4]
[365219699,1749543038650,-806.05,0.00021095,4]
[365219700,1749543038660,-225.82,0.00021095,4]
[365219701,1749543038670,-500.0,0.00021095,4]
[365219702,1749543038680,-460.0,0.00021095,4]
[365219703,1749543038692,-213.2477065,0.00021095,4]
[365219704,1749543038702,-581.45,0.00021095,4]
[365219705,1749543038712,-501.96,0.00021095,4]
[365219706,1749543038724,-1925.97,0.00021095,4]
[365219707,1749543038734,-460.0,0.00021095,4]
[365219708,1749543038744,-460.0,0.00021095,4]
[365219709,1749543038755,-556.62,0.00021095,4]
[365219710,1749543038765,-511.09,0.00021095,4]
[365219711,1749543038774,-460.0,0.00021095,4]
[365219712,1749543038783,-460.0,0.00021095,4]
[365219713,1749543038792,-634.74,0.00021095,4]
[365219714,1749543038802,-460.0,0.00021095,4]
[365219715,1749543038811,-460.0,0.00021095,4]
[365219716,1749543038820,-460.0,0.00021095,4]
[365219717,1749543038830,-399.98530188,0.00021095,4]
[365219718,1749543038839,-815.06,0.00021095,4]
[365219719,1749543038848,-400.0,0.00021095,4]
[365219720,1749543038858,-1655.15,0.00021103,2]
[365219721,1749543038867,-586.90310622,0.00021175,2]
[365219722,1749543038877,-270.26619462,0.00021176,4]
[365219723,1749543038887,-270.26619462,0.00021314,5]
[365219724,1749543038897,-806.05,0.00021368,4]
[365219725,1749543038907,-460.0,0.00021369,4]
[365219726,1749543038916,-581.45,0.00021369,4]
[365219727,1749543038926,-501.96,0.00021369,4]
[365219728,1749543038936,-1925.97,0.00021369,4]
[365219729,1749543038945,-460.0,0.00021369,4]
[365219730,1749543038955,-460.0,0.00021369,4]
[365219731,1749543038964,-556.62,0.00021369,4]
[365219732,1749543038973,-511.09,0.00021369,4]
[365219733,1749543038982,-460.0,0.00021369,4]
[365219734,1749543038991,-634.74,0.00021369,4]
[365219735,1749543039000,-460.0,0.00021369,4]
[365219736,1749543039009,-460.0,0.00021369,4]
[365219737,1749543039019,-460.0,0.00021369,4]
[365219738,1749543039028,-815.06,0.00021369,4]
[365219739,1749543039037,-157.218033,0.00021378,2]
[365219740,1749543039047,-161.381195,0.00021425,2]
[365219741,1749543039057,-357.0740979,0.00021425,2]
[365219742,1749543039067,-309.5761506,0.00021425,2]
[365219743,1749543039076,-573.3540349,0.00021425,2]
[365219744,1749543039086,-309.5232587,0.00021425,2]
[365219745,1749543039096,-213.1263252,0.0002143,2]
[365219746,1749543039107,-160.0,0.0002143,2]
[365219747,1749543039118,-160.0,0.0002143,2]
[365219748,1749543039127,-160.0,0.0002143,2]
[365219749,1749543039138,-160.0,0.0002143,2]
[365219750,1749543039148,-270.26619462,0.00021452,5]
[365219751,1749543039158,-270.26619462,0.0002159,5]
[365219752,1749543039168,-500.0,0.00021642,4]
[365219753,1749543039178,-460.0,0.00021643,4]
[365219754,1749543039190,-581.45,0.00021643,4]
[365219755,1749543039199,-501.96,0.00021643,4]
[365219756,1749543039209,-1925.97,0.00021643,4]
[365219757,1749543039219,-460.0,0.00021643,4]
[365219758,1749543039229,-460.0,0.00021643,4]
[365219759,1749543039239,-556.62,0.00021643,4]
[365219760,1749543039249,-511.09,0.00021643,4]
[365219761,1749543039259,-460.0,0.00021643,4]
[365219762,1749543039269,-634.74,0.00021643,4]
[365219763,1749543039279,-400.0,0.00021643,4]
[365219764,1749543039288,-460.0,0.00021643,4]
[365219765,1749543039298,-460.0,0.00021643,4]
[365219766,1749543039307,-815.06,0.00021643,4]
[365219767,1749543039317,-270.26619462,0.00021728,5]
[365219768,1749543039327,-420.0,0.00021777,2]
[365219769,1749543039336,-1465.0,0.0002181,7]
[365219770,1749543039346,-229.6792923,0.00021811,2]
[365219771,1749543039356,-842.5625,0.00021811,2]
[365219772,1749543039365,-424.12530924,0.00021811,2]
[365219773,1749543039375,-834.9046531,0.00021811,2]
[365219774,1749543039385,-160.0,0.00021811,2]
[365219775,1749543039395,-500.0,0.0002183,2]
[365219776,1749543039405,-234.17401535,0.0002183,2]
[365219777,1749543039415,-273.4071905,0.0002183,2]
[365219778,1749543039425,-207.4,0.00021831,2]
[365219779,1749543039603,-5000.0,0.00021831,2]
[365219780,1749543039614,-160.02203713,0.00021831,2]
[365219781,1749543039624,-1688.0,0.00021831,2]
[365219782,1749543039634,-500.0,0.00021831,2]
[365219783,1749543039643,-500.0,0.00021831,2]
[365219784,1749543039653,-933.09097051,0.00021831,2]
[365219785,1749543039663,-500.0,0.00021831,2]
[365219786,1749543039673,-500.0,0.00021831,2]
[365219787,1749543039684,-500.0,0.00021831,2]
[365219788,1749543039694,-500.0,0.00021831,2]
[365219789,1749543039704,-500.0,0.00021831,2]
[365219790,1749543039714,-500.0,0.00021831,2]
[365219791,1749543039725,-500.0,0.00021831,2]
[365219792,1749543039735,-500.0,0.00021831,2]
[365219793,1749543039745,-500.0,0.00021831,2]
[365219794,1749543039756,-500.0,0.00021831,2]
[365219795,1749543039765,-500.0,0.00021831,2]
[365219796,1749543039775,-500.0,0.00021831,2]
[365219797,1749543039785,-500.0,0.00021831,2]
[365219798,1749543039795,-500.0,0.00021831,2]
[365219799,1749543039805,-500.0,0.00021831,2]
[365219800,1749543039815,-500.0,0.00021831,2]
[365219801,1749543039833,-500.0,0.00021831,2]
[365219802,1749543039846,-500.0,0.00021831,2]
[365219803,1749543039856,-500.0,0.00021831,2]
[365219804,1749543039866,-500.0,0.00021831,2]
[365219805,1749543039875,-500.0,0.00021831,2]
[365219806,1749543039885,-500.0,0.00021831,2]
[365219807,1749543039895,-500.0,0.00021831,2]
[365219808,1749543039905,-500.0,0.00021831,2]
[365219809,1749543039915,-500.0,0.00021831,2]
[365219810,1749543039925,-500.0,0.00021831,2]
[365219811,1749543039934,-500.0,0.00021831,2]
[365219812,1749543039945,-500.0,0.00021831,2]
[365219813,1749543039955,-270.26619462,0.00021866,6]
[365219814,1749543039964,-1750.456,0.00021886,2]
[365219815,1749543039974,-806.05,0.00021916,4]
[365219816,1749543039984,-460.0,0.00021917,4]
[365219817,1749543039994,-581.45,0.00021917,4]
[365219818,1749543040003,-501.96,0.00021917,4]
[365219819,1749543040013,-1925.97,0.00021917,4]
[365219820,1749543040022,-460.0,0.00021917,4]
[365219821,1749543040032,-460.0,0.00021917,4]
[365219822,1749543040041,-556.62,0.00021917,4]
[365219823,1749543040049,-511.09,0.00021917,4]
[365219824,1749543040058,-460.0,0.00021917,4]
[365219825,1749543040067,-634.74,0.00021917,4]
[365219826,1749543040077,-303.2,0.00021917,4]
[365219827,1749543040086,-460.0,0.00021917,4]
[365219828,1749543040095,-815.06,0.00021917,4]
[365219829,1749543040104,-1465.0,0.00021933,7]
[365219830,1749543040113,-1815.222872,0.00021941,2]
[365219831,1749543040121,-470.00032443,0.00021996,2]
[365219832,1749543040131,-1000.0,0.00022,22]
[365219833,1749543040140,-186.0,0.00022,3]
[365219834,1749543040148,-186.0,0.00022,3]
[365219835,1749543040158,-186.0,0.00022,3]
[365219836,1749543040167,-186.0,0.00022,2]
[365219837,1749543040177,-161.0,0.00022,2]
[365219838,1749543040191,-270.26619462,0.00022003,6]
[365219839,1749543040201,-500.0,0.00022054,4]
[365219841,1749543040211,-500.0,0.00022054,4]
[365219843,1749543040222,-1465.0,0.00022056,7]
[365219845,1749543040232,-500.0,0.00022061,4]
[365219847,1749543040241,-2482.72,0.00022062,2]
[365219849,1749543040251,-500.0,0.00022081,4]
[365219851,1749543040262,-505.67156772,0.00022081,4]
[365219852,1749543040273,-150.0,0.000221,2]
[365219855,1749543040283,-515.18519638,0.00022109,4]
[365219857,1749543040293,-270.26619462,0.00022141,6]
[365219858,1749543040302,-1465.0,0.0002218,7]
[365219860,1749543040312,-806.05,0.00022189,4]
[365219862,1749543040321,-500.0,0.0002219,4]
[365219864,1749543040332,-460.0,0.00022191,4]
[365219866,1749543040341,-581.45,0.00022191,4]
[365219869,1749543040352,-501.96,0.00022191,4]
[365219870,1749543040362,-1925.97,0.00022191,4]
[365219871,1749543040372,-460.0,0.00022191,4]
[365219872,1749543040381,-460.0,0.00022191,4]
[365219873,1749543040391,-556.62,0.00022191,4]
[365219874,1749543040400,-511.09,0.00022191,4]
[365219875,1749543040410,-460.0,0.00022191,4]
[365219876,1749543040420,-634.74,0.00022191,4]
[365219877,1749543040432,-460.0,0.00022191,4]
[365219878,1749543040442,-815.06,0.00022191,4]
[365219879,1749543040453,-573.3540349,0.00022247,2]
[365219880,1749543040463,-517.8045863,0.00022247,2]
[365219881,1749543040474,-270.26619462,0.00022279,6]
[365219882,1749543040483,-1465.0,0.00022303,7]
[365219883,1749543040493,-5000.0,0.00022379,2]
[365219884,1749543040503,-850.59735176,0.00022395,2]
[365219885,1749543040513,-270.26619462,0.00022417,7]
[365219886,1749543040523,-1465.0,0.00022426,7]
[365219887,1749543040532,-806.05,0.00022464,4]
[365219888,1749543040542,-500.0,0.00022464,4]
[365219889,1749543040551,-160.0,0.00022464,2]
[365219890,1749543040561,-406.0,0.00022465,2]
[365219891,1749543040571,-460.0,0.00022465,4]
[365219892,1749543040580,-581.45,0.00022465,4]
[365219893,1749543040589,-501.96,0.00022465,4]
[365219894,1749543040599,-1925.97,0.00022465,4]
[365219895,1749543040609,-460.0,0.00022465,4]
[365219896,1749543040619,-460.0,0.00022465,4]
[365219897,1749543040628,-556.62,0.00022465,4]
[365219898,1749543040638,-511.09,0.00022465,4]
[365219899,1749543040648,-460.0,0.00022465,4]
[365219900,1749543040657,-634.74,0.00022465,4]
[365219901,1749543040667,-460.0,0.00022465,4]
[365219902,1749543040676,-815.06,0.00022465,4]
[365219903,1749543040686,-1465.0,0.00022549,7]
[365219904,1749543040696,-842.5625,0.00022549,7]
[365219905,1749543040707,-270.26619462,0.00022555,7]
[365219906,1749543040717,-800.0,0.00022636,2]
[365219907,1749543040726,-1465.0,0.00022673,7]
[365219908,1749543040736,-270.26619462,0.00022693,7]
[365219909,1749543040746,-172.24298129,0.0002271,2]
[365219910,1749543040756,-589.72643276,0.00022722,2]
[365219911,1749543040765,-810.85793273,0.00022732,2]
[365219912,1749543040775,-800.0,0.00022735,2]
[365219913,1749543040785,-460.0,0.00022739,4]
[365219914,1749543040794,-581.45,0.00022739,4]
[365219915,1749543040804,-501.96,0.00022739,4]
[365219916,1749543040813,-1925.97,0.00022739,4]
[365219917,1749543040821,-460.0,0.00022739,4]
[365219918,1749543040828,-460.0,0.00022739,4]
[365219919,1749543040837,-556.62,0.00022739,4]
[365219920,1749543040845,-511.09,0.00022739,4]
[365219921,1749543040852,-460.0,0.00022739,4]
[365219922,1749543040860,-634.74,0.00022739,4]
[365219923,1749543040867,-363.21160816,0.00022739,4]
[365219924,1749543040876,-815.06,0.00022739,4]
[365219925,1749543040883,-589.72643272,0.00022766,2]
[365219926,1749543040891,-1465.0,0.00022796,7]
[365219927,1749543040898,-589.72643272,0.00022811,2]
[365219928,1749543040907,-371.1330319,0.00022822,2]
[365219929,1749543040916,-270.26619462,0.00022831,8]
[365219930,1749543040923,-589.72643272,0.00022855,2]
[365219931,1749543040932,-563.13,0.00022875,3]
[365219932,1749543040943,-395.44731427,0.00022885,4]
[365219933,1749543040953,-187.7,0.00022889,3]
[365219934,1749543040963,-806.05,0.00022898,4]
[365219935,1749543040972,-375.41,0.00022899,3]
[365219936,1749543040982,-589.72643272,0.00022899,2]
[365219937,1749543040990,-1279.1504716,0.00022899,2]
[365219938,1749543040999,-2717.17060191,0.000229,2]
[365219939,1749543041008,-750.81,0.00022909,3]
[365219940,1749543041017,-1465.0,0.00022919,7]
[365219941,1749543041026,-5000.0,0.00022927,2]
[365219942,1749543041036,-39419.97431085,0.0002295,7]
[365219943,1749543041046,-39419.97431085,0.0002295,7]
[365219944,1749543041056,-270.26619462,0.00022969,8]
[365219945,1749543041067,-500.0,0.00022973,2]
[365219946,1749543041077,-501.75429769,0.00022973,2]
[365219947,1749543041087,-505.8254603,0.00022973,2]
[365219948,1749543041097,-500.0,0.00022973,2]
[365219949,1749543041107,-500.0,0.00022973,2]
[365219950,1749543041117,-1000.0,0.00022986,2]
[365219951,1749543041127,-1000.0,0.00022986,2]
[365219952,1749543041136,-1000.0,0.00022986,2]
[365219953,1749543041145,-1000.0,0.00022986,2]
[365219954,1749543041154,-1000.0,0.00022986,2]
[365219955,1749543041163,-1000.0,0.00022986,2]
[365219956,1749543041172,-1000.0,0.00022986,2]
[365219957,1749543041184,-1000.0,0.00022986,2]
[365219958,1749543041193,-1000.0,0.00022986,2]
[365219959,1749543041202,-1000.0,0.00022986,2]
[365219960,1749543041211,-597.83924358,0.00022986,2]
[365219961,1749543041220,-806.05,0.00022997,4]
[365219962,1749543041230,-806.05,0.00022998,4]
[365219963,1749543041239,-806.05,0.00022998,4]
[365219964,1749543041248,-806.05,0.00022998,4]
[365219965,1749543041260,-806.05,0.00022998,4]
[365219966,1749543041269,-806.05,0.00022998,4]
[365219967,1749543041278,-806.05,0.00022998,4]
[365219968,1749543041287,-806.05,0.00022998,4]
[365219969,1749543041297,-806.05,0.00022998,4]
[365219970,1749543041306,-806.05,0.00022998,4]
[365219971,1749543041317,-806.05,0.00022998,4]
[365219972,1749543041326,-806.05,0.00022998,4]
[365219973,1749543041336,-806.05,0.00022998,4]
[365219974,1749543041346,-806.05,0.00022998,4]
[365219975,1749543041355,-806.05,0.00022998,4]
[365219976,1749543041364,-806.05,0.00022998,4]
[365219977,1749543041373,-806.05,0.00022998,4]
[365219978,1749543041383,-806.07227971,0.00022998,4]
[365219979,1749543041394,-14455.81637656,0.00022999,2]
[365219980,1749543041403,-59889.22590162,0.00022999,2]
[365219981,1749543041414,-621605.10434763,0.00022999,7]
[365219982,1749543041507,-2514.22349169,0.00022999,7]
[365219983,1749543041687,-0.0383185,0.00022999,7]
[365219998,1749543043015,-223670.21831556,0.00022999,7]
[365219999,1749543043025,-278.98574212,0.00022999,2]
[365220000,1749543043035,-500.0,0.00022999,2]
[365220001,1749543043044,-500.0,0.00022999,2]
[365220002,1749543043056,-500.0,0.00022999,2]
[365220003,1749543043066,-504.67640987,0.00022999,2]
[365220004,1749543043074,-500.0,0.00022999,2]
[365220005,1749543043083,-500.0,0.00022999,2]
[365220006,1749543043093,-500.0,0.00022999,2]
[365220007,1749543043102,-500.0,0.00022999,2]
[365220008,1749543043112,-200.0,0.00022999,2]
[365220009,1749543043121,-200.0,0.00022999,2]
[365220010,1749543043131,-298207.15963632,0.00023,20]
[365220011,1749543043140,-58675.06182551,0.00023,30]
[365220077,1749543243993,-173.13777153,0.00019495,6]
[365220081,1749543405966,935.0,0.00024734,60]
[365220085,1749543542348,16133.8469643,0.000246,120]
[365220105,1749543660078,321.800711,0.00013699,2]
[365220108,1749543749654,213.81429767,0.0002465,120]
[365220113,1749544094890,412.30148334,0.00010618,2]
[365220114,1749544108778,275.94151547,0.00014114,2]
[365220119,1749544118417,-444.73057202,0.00018,2]
[365220120,1749544120674,1000.0,0.0001,2]
[365220122,1749544122334,-170.91839727,0.00018,2]
[365220124,1749544123885,-258.83449758,0.00018,2]
[365220125,1749544124212,1804.19315416,0.00015,2]
[365220126,1749544125079,209.32802025,0.00016,2]
[365220127,1749544126349,-500.0,0.00018,2]
[365220128,1749544126407,506.82245183,0.0001,2]
[365220129,1749544126430,1628.70167512,0.0001,2]
[365220130,1749544129798,-259.51324761,0.00018,2]
[365220131,1749544134413,-195.85382659,0.00018,2]
[365220132,1749544136264,-419.91669236,0.00018,2]
[365220133,1749544138801,-279.3271352,0.00018,2]
[365220134,1749544141404,-173.0428648,0.00018,2]
[365220138,1749544142805,300.0,0.00017999,2]
[365220139,1749544143583,-318.02843921,0.00018,2]
[365220140,1749544146116,-285.19929943,0.00018,2]
[365220141,1749544148923,-157.90957491,0.00018,2]
[365220142,1749544151910,-280.69122143,0.00018,2]
[365220143,1749544154141,-206.01501652,0.00018,2]
[365220144,1749544155877,-388.00765771,0.00018,2]
[365220145,1749544163523,-241.47574459,0.00018,2]
[365220146,1749544166069,-311.21466435,0.00018,2]
[365220149,1749544168553,-226.84863573,0.00018,2]
[365220150,1749544170332,-241.67029048,0.00018,2]
[365220151,1749544175730,-217.74404699,0.00018,2]
[365220152,1749544178289,-309.45334445,0.00018,2]
[365220153,1749544180936,-271.18130867,0.00018,2]
[365220154,1749544184679,-254.49744474,0.00018,2]
[365220155,1749544185883,5000.0,0.00018,2]
[365220156,1749544188084,-224.44067473,0.00018,2]
[365220157,1749544190427,-203.01044608,0.00018,2]
[365220158,1749544192612,-237.62205689,0.00018,2]
[365220161,1749544196149,-225.07,0.00018,2]
[365220162,1749544198982,-371.76640356,0.00018,2]
[365220163,1749544201985,5000.0,0.00018,2]
[365220164,1749544202246,-181.60870613,0.00018,2]
[365220165,1749544202729,300.0,0.00017999,2]
[365220166,1749544203207,328.62932488,0.00016,2]
[365220167,1749544203232,4137.77067512,0.00016,2]
[365220168,1749544206383,-275.35372661,0.00018,2]
[365220169,1749544208708,-151.68429597,0.00018,2]
[365220170,1749544208939,1145.0,0.00017999,2]
[365220171,1749544212083,-225.44817889,0.00018,2]
[365220172,1749544216427,-346.50026447,0.00018,2]
[365220173,1749544218412,5000.0,0.00018,2]
[365220174,1749544218928,-342.11648481,0.00018,2]
[365220175,1749544221294,-213.62075488,0.00018,2]
[365220176,1749544225268,-173.52088538,0.00018,2]
[365220210,1749544231893,273.4071905,0.00017999,2]
[365220217,1749544231948,500.0,0.00017999,2]
[365220224,1749544232007,234.17401535,0.00017999,2]
[365220228,1749544232034,-2578.42386943,0.00018,2]